lending/lending_fUSD_20250121
["ID","MTS","AMOUNT","RATE_DAILY","PERIOD"]
[349915196,1737502248158,-500.0,0.00020897,2]
[349915197,1737502248169,-500.0,0.00020897,2]
[349915198,1737502248179,-500.0,0.00020897,2]
[349915199,1737502248190,-500.0,0.00020897,2]
[349915200,1737502248202,-500.0,0.00020897,2]
[349915201,1737502248211,-500.0,0.00020897,2]
[349915202,1737502248221,-500.0,0.00020897,2]
[349915203,1737502248231,-500.0,0.00020897,2]
[349915204,1737502248241,-332.8594034,0.00020897,2]
[349915205,1737502248251,-500.0,0.00020897,2]
[349915206,1737502248263,-500.0,0.00020897,2]
[349915207,1737502248273,-500.0,0.00020897,2]
[349915208,1737502248283,-500.0,0.00020897,2]
[349915209,1737502248293,-500.0,0.00020897,2]
[349915210,1737502248303,-503.45541968,0.00020897,2]
[349915211,1737502248312,-500.0,0.00020897,2]
[349915212,1737502248322,-500.0,0.00020897,2]
[349915213,1737502248332,-500.0,0.00020897,2]
[349915214,1737502248342,-623.05307262,0.00020897,2]
[349915215,1737502248352,-500.0,0.00020897,2]
[349915216,1737502248363,-500.0,0.00020897,2]
[349915217,1737502248372,-234.775385,0.00020897,2]
[349915218,1737502248382,-500.0,0.00020897,2]
[349915219,1737502248391,-500.0,0.00020897,2]
[349915220,1737502248401,-234.775385,0.00020897,2]
[349915221,1737502248411,-500.0,0.00020897,2]
[349915222,1737502248422,-500.0,0.00020897,2]
[349915223,1737502248432,-198.10050778,0.00020897,2]
[349915224,1737502248443,-500.0,0.00020897,2]
[349915225,1737502248452,-500.0,0.00020897,2]
[349915226,1737502248463,-500.0,0.00020897,2]
[349915227,1737502248473,-500.0,0.00020897,2]
[349915228,1737502248484,-504.012699,0.00020897,2]
[349915229,1737502248495,-500.0,0.00020897,2]
[349915230,1737502248505,-500.0,0.00020897,2]
[349915231,1737502248517,-500.0,0.00020897,2]
[349915232,1737502248527,-500.0,0.00020897,2]
[349915233,1737502248539,-500.0,0.00020897,2]
[349915234,1737502248549,-500.0,0.00020897,2]
[349915235,1737502248560,-508.64185421,0.00020897,2]
[349915236,1737502248570,-500.0,0.00020897,2]
[349915237,1737502248580,-500.0,0.00020897,2]
[349915238,1737502248590,-511.44158037,0.00020897,2]
[349915239,1737502248600,-500.0,0.00020897,2]
[349915240,1737502248610,-500.0,0.00020897,2]
[349915241,1737502248620,-500.0,0.00020897,2]
[349915242,1737502248629,-500.0,0.00020897,2]
[349915243,1737502248639,-500.0,0.00020897,2]
[349915244,1737502248649,-500.0,0.00020897,2]
[349915245,1737502248659,-500.0,0.00020897,2]
[349915246,1737502248669,-471.00692521,0.00020897,2]
[349915247,1737502248688,-88.81110965,0.00020897,2]
[349915248,1737502248699,-500.0,0.00020897,2]
[349915249,1737502248709,-500.0,0.00020897,2]
[349915250,1737502248718,-500.0,0.00020897,2]
[349915251,1737502248729,-364.22889035,0.00020897,2]
[349915252,1737502248741,-147.26175978,0.00020897,2]
[349915253,1737502248751,-500.0,0.00020897,2]
[349915254,1737502248764,-500.0,0.00020897,2]
[349915255,1737502248774,-33.42924022,0.00020897,2]
[349915256,1737502248786,-466.57075978,0.00020897,2]
[349915257,1737502248796,-566.12,0.00020897,2]
[349915258,1737502248806,-500.0,0.00020897,2]
[349915259,1737502248816,-500.0,0.00020897,2]
[349915260,1737502248826,-500.0,0.00020897,2]
[349915261,1737502248836,-500.0,0.00020897,2]
[349915262,1737502248847,-500.0,0.00020897,2]
[349915263,1737502248857,-500.0,0.00020897,2]
[349915264,1737502248867,-500.0,0.00020897,2]
[349915265,1737502248877,-324.52499685,0.00020897,2]
[349915266,1737502248886,-500.0,0.00020897,2]
[349915267,1737502248896,-500.0,0.00020897,2]
[349915268,1737502248906,-500.0,0.00020897,2]
[349915269,1737502248915,-500.0,0.00020897,2]
[349915270,1737502248925,-500.0,0.00020897,2]
[349915271,1737502248935,-500.0,0.00020897,2]
[349915272,1737502248945,-500.0,0.00020897,2]
[349915273,1737502248955,-500.0,0.00020897,2]
[349915274,1737502248964,-500.0,0.00020897,2]
[349915275,1737502248974,-500.0,0.00020897,2]
[349915276,1737502248984,-500.0,0.00020897,2]
[349915277,1737502248994,-500.0,0.00020897,2]
[349915278,1737502249003,-500.0,0.00020897,2]
[349915279,1737502249015,-500.0,0.00020897,2]
[349915280,1737502249026,-500.0,0.00020897,2]
[349915281,1737502249037,-500.0,0.00020897,2]
[349915282,1737502249047,-500.0,0.00020897,2]
[349915283,1737502249058,-500.0,0.00020897,2]
[349915284,1737502249069,-500.8518791,0.00020897,2]
[349915285,1737502249080,-500.0,0.00020897,2]
[349915286,1737502249089,-500.0,0.00020897,2]
[349915287,1737502249099,-500.0,0.00020897,2]
[349915288,1737502249112,-500.0,0.00020897,2]
[349915289,1737502249123,-500.0,0.00020897,2]
[349915290,1737502249132,-500.0,0.00020897,2]
[349915291,1737502249141,-503.73740045,0.00020897,2]
[349915292,1737502249151,-500.0,0.00020897,2]
[349915293,1737502249161,-500.0,0.00020897,2]
[349915294,1737502249170,-500.0,0.00020897,2]
[349915295,1737502249180,-500.0,0.00020897,2]
[349915296,1737502249189,-500.0,0.00020897,2]
[349915297,1737502249199,-500.0,0.00020897,2]
[349915298,1737502249210,-500.0,0.00020897,2]
[349915299,1737502249219,-500.0,0.00020897,2]
[349915300,1737502249229,-500.0,0.00020897,2]
[349915301,1737502249239,-500.0,0.00020897,2]
[349915302,1737502249249,-500.0,0.00020897,2]
[349915303,1737502249259,-500.0,0.00020897,2]
[349915304,1737502249268,-500.0,0.00020897,2]
[349915305,1737502249278,-500.0,0.00020897,2]
[349915306,1737502249287,-297.71359371,0.00020897,2]
[349915307,1737502249296,-500.0,0.00020897,2]
[349915308,1737502249306,-500.0,0.00020897,2]
[349915309,1737502249315,-500.0,0.00020897,2]
[349915310,1737502249325,-500.0,0.00020897,2]
[349915311,1737502249335,-500.0,0.00020897,2]
[349915312,1737502249344,-500.0,0.00020897,2]
[349915313,1737502249353,-500.0,0.00020897,2]
[349915314,1737502249363,-500.0,0.00020897,2]
[349915315,1737502249373,-501.74102189,0.00020897,2]
[349915316,1737502249383,-500.0,0.00020897,2]
[349915317,1737502249393,-500.0,0.00020897,2]
[349915318,1737502249403,-502.70331232,0.00020897,2]
[349915319,1737502249413,-500.0,0.00020897,2]
[349915320,1737502249422,-940.3,0.00020897,2]
[349915321,1737502249433,-500.0,0.00020897,2]
[349915322,1737502249443,-2674.09,0.00020897,2]
[349915323,1737502249453,-500.0,0.00020897,2]
[349915324,1737502249463,-501.649893,0.00020897,2]
[349915325,1737502249472,-500.0,0.00020897,2]
[349915326,1737502249482,-3504.5,0.00020897,2]
[349915327,1737502249491,-500.0,0.00020897,2]
[349915328,1737502249501,-500.0,0.00020897,2]
[349915329,1737502249513,-500.0,0.00020897,2]
[349915330,1737502249525,-500.0,0.00020897,2]
[349915331,1737502249534,-500.0,0.00020897,2]
[349915332,1737502249544,-500.0,0.00020897,2]
[349915333,1737502249554,-500.0,0.00020897,2]
[349915334,1737502249563,-749.0,0.00020897,2]
[349915335,1737502249573,-500.0,0.00020897,2]
[349915336,1737502249582,-500.0,0.00020897,2]
[349915337,1737502249592,-500.0,0.00020897,2]
[349915338,1737502249601,-500.0,0.00020897,2]
[349915339,1737502249611,-500.0,0.00020897,2]
[349915340,1737502249621,-500.0,0.00020897,2]
[349915341,1737502249630,-487.89500768,0.00020897,2]
[349915342,1737502249640,-1450.4,0.00020897,2]
[349915343,1737502249650,-500.0,0.00020897,2]
[349915344,1737502249660,-350.5315362,0.00020897,2]
[349915345,1737502249669,-500.0,0.00020897,7]
[349915346,1737502249680,-723.89,0.00020897,2]
[349915347,1737502249689,-500.0,0.00020897,2]
[349915348,1737502249699,-500.0,0.00020897,2]
[349915349,1737502249709,-500.0,0.00020897,2]
[349915350,1737502249719,-500.0,0.00020897,2]
[349915351,1737502249728,-500.0,0.00020897,2]
[349915352,1737502249738,-500.0,0.00020897,2]
[349915353,1737502249748,-500.0,0.00020897,2]
[349915354,1737502249759,-815.2,0.00020897,2]
[349915355,1737502249770,-500.0,0.00020897,2]
[349915356,1737502249780,-873.64,0.00020897,2]
[349915357,1737502249956,-500.0,0.00020897,2]
[349915358,1737502249967,-500.0,0.00020897,2]
[349915359,1737502249977,-500.0,0.00020897,2]
[349915360,1737502249987,-1000.0,0.00020897,2]
[349915361,1737502249998,-500.0,0.00020897,2]
[349915362,1737502250009,-368.0832223,0.00020897,2]
[349915363,1737502250020,-500.0,0.00020897,2]
[349915364,1737502250029,-682.35,0.00020897,2]
[349915365,1737502250039,-500.0,0.00020897,2]
[349915366,1737502250049,-500.0,0.00020897,2]
[349915367,1737502250058,-500.0,0.00020897,2]
[349915368,1737502250067,-500.0,0.00020897,2]
[349915369,1737502250077,-500.0,0.00020897,2]
[349915370,1737502250087,-500.0,0.00020897,2]
[349915371,1737502250096,-500.0,0.00020897,2]
[349915372,1737502250106,-1029.18,0.00020897,2]
[349915373,1737502250116,-539.91657067,0.00020897,2]
[349915374,1737502250131,-332.193725,0.00020897,2]
[349915375,1737502250140,-332.193725,0.00020897,2]
[349915376,1737502250150,-500.0,0.00020897,2]
[349915377,1737502250161,-332.193725,0.00020897,2]
[349915378,1737502250171,-500.0,0.00020897,2]
[349915379,1737502250180,-332.193725,0.00020897,2]
[349915380,1737502250190,-500.0,0.00020897,2]
[349915381,1737502250200,-500.0,0.00020897,2]
[349915382,1737502250210,-964.74,0.00020897,2]
[349915383,1737502250220,-500.0,0.00020897,2]
[349915384,1737502250229,-500.0,0.00020897,2]
[349915385,1737502250238,-500.0,0.00020897,2]
[349915386,1737502250247,-500.0,0.00020897,2]
[349915387,1737502250259,-500.0,0.00020897,2]
[349915388,1737502250268,-500.0,0.00020897,2]
[349915389,1737502250279,-500.0,0.00020897,2]
[349915390,1737502250290,-500.0,0.00020897,2]
[349915391,1737502250299,-500.0,0.00020897,2]
[349915392,1737502250308,-500.0,0.00020897,2]
[349915393,1737502250319,-500.0,0.00020897,2]
[349915394,1737502250329,-500.0,0.00020897,2]
[349915395,1737502250338,-500.0,0.00020897,2]
[349915396,1737502250348,-500.0,0.00020897,2]
[349915397,1737502250357,-500.0,0.00020898,2]
[349915398,1737502250367,-500.0,0.00020898,2]
[349915399,1737502250377,-500.0,0.00020898,2]
[349915400,1737502250388,-500.0,0.00020898,2]
[349915401,1737502250398,-775.63,0.00020898,2]
[349915402,1737502250408,-500.0,0.00020898,2]
[349915403,1737502250419,-500.0,0.00020898,2]
[349915404,1737502250429,-500.0,0.00020898,2]
[349915405,1737502250441,-500.0,0.00020898,2]
[349915406,1737502250451,-500.0,0.00020898,2]
[349915407,1737502250460,-500.0,0.00020898,2]
[349915408,1737502250470,-500.0,0.00020898,2]
[349915409,1737502250479,-500.0,0.00020898,2]
[349915410,1737502250489,-500.0,0.00020898,2]
[349915411,1737502250498,-500.0,0.00020898,2]
[349915412,1737502250509,-500.0,0.00020898,2]
[349915413,1737502250518,-500.0,0.00020898,2]
[349915414,1737502250528,-500.0,0.00020898,2]
[349915415,1737502250538,-571.32633583,0.00020898,2]
[349915416,1737502250547,-500.0,0.00020898,2]
[349915417,1737502250557,-500.0,0.00020898,2]
[349915418,1737502250566,-500.0,0.00020898,2]
[349915419,1737502250576,-502.3074631,0.00020898,2]
[349915420,1737502250588,-500.0,0.00020898,2]
[349915421,1737502250597,-500.0,0.00020898,2]
[349915422,1737502250607,-500.0,0.00020898,2]
[349915423,1737502250618,-500.0,0.00020898,2]
[349915424,1737502250628,-500.0,0.00020898,2]
[349915425,1737502250637,-500.0,0.00020898,2]
[349915426,1737502250647,-500.0,0.00020898,2]
[349915427,1737502250657,-500.0,0.00020898,2]
[349915428,1737502250666,-500.0,0.00020898,2]
[349915429,1737502250676,-500.0,0.00020898,2]
[349915430,1737502250685,-500.0,0.00020898,2]
[349915431,1737502250695,-500.0,0.00020898,2]
[349915432,1737502250704,-500.0,0.00020898,2]
[349915433,1737502250714,-500.0,0.00020898,2]
[349915434,1737502250724,-500.0,0.00020898,2]
[349915435,1737502250734,-500.0,0.00020898,2]
[349915436,1737502250744,-500.0,0.00020898,2]
[349915437,1737502250753,-500.0,0.00020898,2]
[349915438,1737502250763,-500.0,0.00020898,2]
[349915439,1737502250773,-500.0,0.00020898,2]
[349915440,1737502250782,-500.0,0.00020898,2]
[349915441,1737502250792,-500.0,0.00020898,2]
[349915442,1737502250801,-500.0,0.00020898,2]
[349915443,1737502250810,-500.0,0.00020898,2]
[349915444,1737502250820,-500.0,0.00020898,2]
[349915445,1737502250830,-234.775385,0.00020898,2]
[349915446,1737502250840,-500.0,0.00020898,2]
[349915447,1737502250850,-234.775385,0.00020898,2]
[349915448,1737502250859,-500.0,0.00020898,2]
[349915449,1737502250869,-500.0,0.00020898,2]
[349915450,1737502250879,-500.0,0.00020898,2]
[349915451,1737502250888,-500.0,0.00020898,2]
[349915452,1737502250898,-500.0,0.00020898,2]
[349915453,1737502250907,-500.0,0.00020898,2]
[349915454,1737502250916,-500.0,0.00020898,2]
[349915455,1737502250926,-500.0,0.00020898,2]
[349915456,1737502250936,-500.0,0.00020898,2]
[349915457,1737502250946,-500.0,0.00020898,2]
[349915458,1737502250955,-500.0,0.00020898,2]
[349915459,1737502250965,-500.0,0.00020898,2]
[349915460,1737502250974,-500.0,0.00020898,2]
[349915461,1737502250984,-500.0,0.00020898,2]
[349915462,1737502250993,-500.0,0.00020898,2]
[349915463,1737502251002,-500.0,0.00020898,2]
[349915464,1737502251013,-500.0,0.00020898,2]
[349915465,1737502251022,-500.0,0.00020898,2]
[349915466,1737502251031,-500.0,0.00020898,2]
[349915467,1737502251041,-500.0,0.00020898,2]
[349915468,1737502251050,-500.0,0.00020898,2]
[349915469,1737502251060,-500.0,0.00020898,2]
[349915470,1737502251069,-500.0,0.00020898,2]
[349915471,1737502251081,-500.0,0.00020898,2]
[349915472,1737502251091,-500.0,0.00020898,2]
[349915473,1737502251100,-500.0,0.00020898,2]
[349915474,1737502251108,-500.0,0.00020898,2]
[349915475,1737502251118,-500.0,0.00020898,2]
[349915476,1737502251128,-500.0,0.00020898,2]
[349915477,1737502251138,-500.0,0.00020898,2]
[349915478,1737502251147,-712.43,0.00020898,2]
[349915479,1737502251158,-500.0,0.00020898,2]
[349915480,1737502251168,-500.0,0.00020898,2]
[349915481,1737502251178,-500.0,0.00020898,2]
[349915482,1737502251190,-670.49,0.00020898,2]
[349915483,1737502251201,-379.82324336,0.00020898,2]
[349915484,1737502251211,-500.0,0.00020898,2]
[349915485,1737502251220,-500.0,0.00020898,2]
[349915486,1737502251229,-500.0,0.00020898,2]
[349915487,1737502251238,-500.0,0.00020898,2]
[349915488,1737502251253,-332.193725,0.00020898,2]
[349915489,1737502251264,-332.193725,0.00020898,2]
[349915490,1737502251273,-303.87909839,0.00020898,2]
[349915491,1737502251283,-3836.72201938,0.00020899,2]
[349915492,1737502251292,-500.0,0.00020899,2]
[349915493,1737502251301,-500.0,0.00020899,2]
[349915494,1737502251311,-500.0,0.00020899,2]
[349915495,1737502251322,-500.0,0.00020899,2]
[349915496,1737502251336,-607.79908735,0.00020899,2]
[349915497,1737502251345,-179.53981111,0.00020899,2]
[349915498,1737502251356,-500.0,0.00020899,2]
[349915499,1737502251367,-500.0,0.00020899,2]
[349915500,1737502251377,-556.58170074,0.00020899,2]
[349915501,1737502251387,-500.0,0.00020899,2]
[349915502,1737502251396,-500.0,0.00020899,2]
[349915503,1737502251406,-500.0,0.00020899,2]
[349915504,1737502251416,-500.0,0.00020899,2]
[349915505,1737502251426,-500.0,0.00020899,2]
[349915506,1737502251435,-500.0,0.00020899,2]
[349915507,1737502251445,-494.0,0.00020899,2]
[349915508,1737502251454,-500.0,0.00020899,2]
[349915509,1737502251464,-500.0,0.00020899,2]
[349915510,1737502251474,-500.0,0.00020899,2]
[349915511,1737502251483,-500.0,0.00020899,2]
[349915512,1737502251492,-500.0,0.00020899,2]
[349915513,1737502251502,-500.0,0.00020899,2]
[349915514,1737502251511,-500.0,0.00020899,2]
[349915515,1737502251520,-500.0,0.00020899,2]
[349915516,1737502251529,-501.30700867,0.00020899,2]
[349915517,1737502251539,-500.0,0.00020899,2]
[349915518,1737502251549,-500.0,0.00020899,2]
[349915519,1737502251558,-500.0,0.00020899,2]
[349915520,1737502251567,-500.0,0.00020899,2]
[349915521,1737502251576,-500.0,0.00020899,2]
[349915522,1737502251585,-500.0,0.00020899,2]
[349915523,1737502251595,-500.0,0.00020899,2]
[349915524,1737502251604,-500.0,0.00020899,2]
[349915525,1737502251613,-500.0,0.00020899,2]
[349915526,1737502251623,-500.0,0.00020899,2]
[349915527,1737502251632,-500.0,0.00020899,2]
[349915528,1737502251641,-500.0,0.00020899,2]
[349915529,1737502251651,-500.0,0.00020899,2]
[349915530,1737502251661,-500.0,0.00020899,2]
[349915531,1737502251670,-504.31475219,0.00020899,2]
[349915532,1737502251680,-500.0,0.00020899,2]
[349915533,1737502251690,-500.0,0.00020899,2]
[349915534,1737502251700,-500.0,0.00020899,2]
[349915535,1737502251709,-500.0,0.00020899,2]
[349915536,1737502251719,-500.0,0.00020899,2]
[349915537,1737502251728,-500.0,0.00020899,2]
[349915538,1737502251737,-500.0,0.00020899,2]
[349915539,1737502251747,-500.0,0.00020899,2]
[349915540,1737502251756,-278.52165877,0.00020899,2]
[349915541,1737502251765,-500.0,0.00020899,2]
[349915542,1737502251774,-583.82700915,0.00020899,2]
[349915543,1737502251784,-500.0,0.00020899,2]
[349915544,1737502251793,-525.23742861,0.00020899,2]
[349915545,1737502251804,-576.00314682,0.00020899,2]
[349915546,1737502251813,-500.0,0.00020899,2]
[349915547,1737502251823,-500.0,0.00020899,2]
[349915548,1737502251835,-500.0,0.00020899,2]
[349915549,1737502251846,-500.0,0.00020899,2]
[349915550,1737502251855,-500.0,0.00020899,2]
[349915551,1737502251864,-500.0,0.00020899,2]
[349915552,1737502251873,-500.0,0.00020899,2]
[349915553,1737502251883,-500.0,0.00020899,2]
[349915554,1737502251894,-500.0,0.00020899,2]
[349915555,1737502251903,-500.0,0.00020899,2]
[349915556,1737502251913,-500.0,0.00020899,2]
[349915557,1737502251922,-500.0,0.00020899,2]
[349915558,1737502251931,-500.0,0.00020899,2]
[349915559,1737502251941,-500.0,0.00020899,2]
[349915560,1737502251950,-500.0,0.00020899,2]
[349915561,1737502251960,-500.0,0.00020899,2]
[349915562,1737502251969,-500.0,0.00020899,2]
[349915563,1737502251978,-500.0,0.00020899,2]
[349915564,1737502251988,-500.0,0.00020899,2]
[349915565,1737502251997,-500.0,0.00020899,2]
[349915566,1737502252008,-500.0,0.00020899,2]
[349915567,1737502252018,-500.0,0.00020899,2]
[349915568,1737502252027,-500.0,0.00020899,2]
[349915569,1737502252036,-500.0,0.00020899,2]
[349915570,1737502252046,-500.0,0.00020899,2]
[349915571,1737502252056,-500.0,0.00020899,2]
[349915572,1737502252065,-478.9987664,0.00020899,2]
[349915573,1737502252075,-500.0,0.00020899,2]
[349915574,1737502252084,-299.37082497,0.00020899,2]
[349915575,1737502252094,-500.0,0.00020899,2]
[349915576,1737502252104,-326.37373864,0.00020899,2]
[349915577,1737502252114,-234.775385,0.00020899,2]
[349915578,1737502252126,-234.775385,0.00020899,2]
[349915579,1737502252135,-234.775385,0.00020899,2]
[349915580,1737502252144,-234.775385,0.00020899,2]
[349915581,1737502252155,-332.193725,0.00020899,2]
[349915582,1737502252164,-332.193725,0.00020899,2]
[349915583,1737502252174,-33222.87226868,0.000209,2]
[349915584,1737502252201,-1269.26404567,0.000209,2]
[349915585,1737502252220,-500.0,0.000209,2]
[349915586,1737502252245,-1077.24549593,0.000209,2]
[349915587,1737502252258,-36892.10131366,0.000209,2]
[349915588,1737502252267,-14090.34063812,0.000209,2]
[349915589,1737502252278,-39850.11973999,0.000209,2]
[349915594,1737502779569,369.8,0.00024,120]
[349915600,1737503372314,-203.45701903,0.00015,2]
[349915606,1737503431702,-346.54298097,0.00015,2]
[349915607,1737503431713,-600.0,0.00017,2]
[349915608,1737503431723,-1031.41108838,0.00017899,2]
[349915609,1737503431733,-1031.41108836,0.000179,2]
[349915610,1737503431743,-647.91,0.00017975,2]
[349915611,1737503431753,-300.0,0.00017999,2]
[349915612,1737503431763,-10887.91182252,0.00018,2]
[349915613,1737503431773,-250.0,0.00018892,2]
[349915614,1737503431782,-651.92,0.0001891,2]
[349915615,1737503431792,-200.0,0.00018913,2]
[349915616,1737503431801,-2414.04707886,0.00018919,2]
[349915617,1737503431815,-4232.92503026,0.00018919,2]
[349915618,1737503431852,-2234.77306627,0.00018919,2]
[349915619,1737503431864,-3948.47980032,0.00018919,2]
[349915620,1737503431876,-4984.47887116,0.00018919,2]
[349915621,1737503431889,-250.0,0.00018919,2]
[349915622,1737503431907,-5835.29615313,0.00018919,2]
[349915623,1737503431918,-650.0,0.00019,2]
[349915624,1737503431927,-250.0,0.00019016,2]
[349915625,1737503431938,-428.73,0.00019055,2]
[349915626,1737503431948,-271.3,0.00019061,2]
[349915627,1737503431958,-527.61,0.00019076,2]
[349915628,1737503431968,-4450.34,0.00019076,2]
[349915629,1737503431978,-1413.02,0.00019113,2]
[349915630,1737503431988,-11889.42,0.00019151,2]
[349915631,1737503431999,-760.807,0.00019151,2]
[349915632,1737503432008,-1996.0,0.00019189,2]
[349915633,1737503432018,-161.55,0.00019208,30]
[349915634,1737503432027,-174.17,0.00019458,2]
[349915635,1737503432037,-420.0,0.00019639,2]
[349915636,1737503432046,-519.74317377,0.00019713,2]
[349915637,1737503432059,-271.3,0.00019766,2]
[349915638,1737503432068,-176.08,0.00019797,2]
[349915639,1737503432078,-150.0,0.00019802,2]
[349915640,1737503432088,-176.08,0.00019802,2]
[349915641,1737503432098,-176.08,0.00019808,2]
[349915642,1737503432108,-176.08,0.00019813,2]
[349915643,1737503432119,-176.08,0.00019818,2]
[349915644,1737503432129,-176.08,0.00019823,2]
[349915645,1737503432139,-176.08,0.00019829,2]
[349915646,1737503432148,-1000.0,0.0001983,2]
[349915647,1737503432159,-466.26471362,0.0001983,2]
[349915648,1737503432169,-176.08,0.00019834,2]
[349915649,1737503432178,-176.08,0.00019839,2]
[349915650,1737503432187,-176.08,0.00019844,2]
[349915651,1737503432196,-176.08,0.00019849,2]
[349915653,1737503432206,-176.08,0.00019855,2]
[349915654,1737503432215,-176.08,0.0001986,2]
[349915656,1737503432225,-176.08,0.00019865,2]
[349915658,1737503432235,-2786.69,0.00019866,2]
[349915660,1737503432244,-176.08,0.0001987,2]
[349915662,1737503432253,-176.08,0.00019875,2]
[349915663,1737503432263,-176.08,0.00019881,2]
[349915664,1737503432272,-250.0,0.00019883,2]
[349915665,1737503432281,-176.08,0.00019886,2]
[349915666,1737503432291,-176.08,0.00019891,2]
[349915667,1737503432301,-176.08,0.00019896,2]
[349915668,1737503432313,-1000.0,0.0002,2]
[349915669,1737503432323,-250.0,0.00020051,2]
[349915670,1737503432332,-1413.02,0.00020068,2]
[349915671,1737503432343,-647.91,0.00020239,2]
[349915672,1737503432352,-421.7797396,0.00020395,2]
[349915673,1737503432363,-271.3,0.00020471,2]
[349915674,1737503432373,-365.2998,0.00020596,2]
[349915675,1737503432382,-715.0739,0.00020596,2]
[349915676,1737503432392,-5679.49814169,0.00020598,2]
[349915677,1737503432402,-2500.0,0.00020598,2]
[349915678,1737503432412,-421.7797397,0.00020618,2]
[349915679,1737503432422,-151.7,0.00020688,2]
[349915680,1737503432431,-3000.0,0.0002069,2]
[349915681,1737503432441,-3224.23581883,0.00020695,2]
[349915682,1737503432450,-6791.2877,0.00020695,2]
[349915683,1737503432461,-855.3982,0.00020696,2]
[349915684,1737503432473,-22915.5431,0.00020696,2]
[349915685,1737503432482,-541.33968968,0.00020696,2]
[349915686,1737503432492,-5000.0,0.00020696,2]
[349915687,1737503432501,-41070.7297,0.00020696,2]
[349915688,1737503432512,-303.87909839,0.00020696,2]
[349915689,1737503432521,-589.1,0.00020697,2]
[349915690,1737503432531,-500.0,0.00020697,2]
[349915691,1737503432541,-500.0,0.00020697,2]
[349915692,1737503432553,-1409.56,0.00020697,2]
[349915693,1737503432564,-500.0,0.00020697,2]
[349915694,1737503432574,-936.52,0.00020697,2]
[349915695,1737503432583,-500.0,0.00020697,2]
[349915696,1737503432593,-1914.11,0.00020697,2]
[349915697,1737503432602,-1049.07,0.00020697,2]
[349915698,1737503432611,-945.91,0.00020697,2]
[349915699,1737503432621,-500.0,0.00020697,2]
[349915700,1737503432630,-711.4,0.00020697,2]
[349915701,1737503432640,-500.0,0.00020697,2]
[349915702,1737503432650,-672.29,0.00020697,2]
[349915703,1737503432659,-1928.47,0.00020697,2]
[349915704,1737503432669,-950.4,0.00020697,2]
[349915705,1737503432678,-1709.87,0.00020697,2]
[349915706,1737503432687,-500.0,0.00020697,2]
[349915707,1737503432696,-1595.83,0.00020697,2]
[349915708,1737503432706,-500.0,0.00020697,2]
[349915709,1737503432715,-500.0,0.00020697,2]
[349915710,1737503432725,-500.0,0.00020697,2]
[349915711,1737503432735,-500.0,0.00020697,2]
[349915712,1737503432745,-500.0,0.00020697,2]
[349915713,1737503432755,-588.17,0.00020697,2]
[349915714,1737503432764,-500.0,0.00020697,2]